[Event "IIFL Wealth 4th Mumbai GM"]
[Site "Mumbai"]
[Date "2019.01.03"]
[Round "5"]
[White "Banerjee, Sushant"]
[Black "Lama, Milan"]
[Result "0-1"]
[ECO "B21"]
[WhiteElo "2198"]
[BlackElo "1897"]
[Annotator "NA"]
[PlyCount "96"]
[EventDate "2018.12.30"]
[EventType "swiss"]
[EventCountry "IND"]
[SourceTitle "playchess.com"]
[Source "ChessBase"]
[SourceQuality "1"]
[TimeControl "40/5400+30:1800+30"]

1. e4 {[%emt 0:00:00]} c5 {[%emt 0:00:00]} 2. d4 {[%emt 0:00:00]} cxd4 {[%emt 0:00:16]} 3. c3 {[%emt 0:00:00]} dxc3 {[%emt 0:01:00]} 4. Nxc3 {[%emt 0:00:00]} e6 {[%emt 0:03:12]} 5. Nf3 {[%emt 0:00:16]} a6 {[%emt 0:00:59]} 6. Bc4 {[%emt 0:00:08]} Ne7 {[%emt 0:01:25]} 7. Bg5 {[%emt 0:00:07]} Qc7 {[%emt 0:02:27]} 8. Bb3 {[%emt 0:00:14]} Ng6 {[%emt 0:01:49]} 9. Rc1 {[%emt 0:00:42]} Nc6 {[%emt 0:01:09]} 10. O-O {[%emt 0:00:40]} Bd6 {[%emt 0:04:26]} 11. h4 {[%emt 0:13:17]} Bf4 {[%emt 0:07:17]} 12. Rc2 {[%emt 0:05:57]} Bxg5 {[%emt 0:03:34]} 13. Nxg5 {[%emt 0:01:44]} h6 {[%emt 0:04:42]} 14. Nd5 {[%emt 0:19:41]} Qd8 {[%emt 0:05:17]} 15. Nf3 {[%emt 0:04:06]} exd5 {[%emt 0:05:10]} 16. exd5 {[%emt 0:00:32]} Na5 {[%emt 0:07:39]} 17. Re2+ {[%emt 0:03:20]} Kf8 {[%emt 0:00:17]} 18. Rfe1 {[%emt 0:02:28]} Nxb3 {[%emt 0:02:37]} 19. Qxb3 {[%emt 0:04:01]} d6 {[%emt 0:01:52]} 20. Qb4 {[%emt 0:07:19]} f6 {[%emt 0:04:19]} 21. h5 {[%emt 0:05:03]} a5 {[%emt 0:05:26]} 22. Re8+ {[%emt 0:05:57]} Qxe8 {[%emt 0:00:19]} 23. Rxe8+ {[%emt 0:00:06]} Kxe8 {[%emt 0:00:05]} 24. Qb5+ {[%emt 0:00:12]} Kf7 {[%emt 0:10:52]} 25. hxg6+ {[%emt 0:00:12]} Kxg6 {[%emt 0:00:09]} 26. Nh4+ {[%emt 0:02:38]} Kf7 {[%emt 0:01:28]} 27. Qb6 {[%emt 0:00:27]} Re8 {[%emt 0:01:49]} 28. Qxd6 {[%emt 0:00:52]} Bg4 {[%emt 0:01:27]} 29. Qg3 {[%emt 0:02:09]} g5 {[%emt 0:01:30]} 30. Qxg4 {[%emt 0:02:44]} gxh4 {[%emt 0:00:08]} 31. Qxh4 {[%emt 0:01:15]} Rad8 {[%emt 0:01:59]} 32. Qh5+ {[%emt 0:03:33]} Kg7 {[%emt 0:00:48]} 33. f4 {[%emt 0:01:54]} Rg8 {[%emt 0:02:51]} 34. Qg4+ {[%emt 0:03:29]} Kh7 {[%emt 0:05:35]} 35. Qe6 {[%emt 0:02:29]} Rg7 {[%emt 0:00:59]} 36. d6 {[%emt 0:03:21]} Rgd7 {[%emt 0:01:11]} 37. Qxf6 {[%emt 0:00:14]} Rxd6 {[%emt 0:00:13]} 38. Qf7+ {[%emt 0:00:51]} Kh8 {[%emt 0:00:07]} 39. Qxb7 {[%emt 0:00:14]} Rg8 {[%emt 0:03:58]} 40. Qe4 {[%emt 0:00:00]} Rd2 {[%emt 0:00:00]} 41. Kh2 {[%emt 0:11:48]} Rg7 {[%emt 0:04:32]} 42. Kh3 {[%emt 0:04:47]} Rxb2 {[%emt 0:00:40]} 43. g4 {[%emt 0:00:26]} Rxa2 {[%emt 0:03:28]} 44. Qe8+ {[%emt 0:00:51]} Kh7 {[%emt 0:01:42]} 45. Qe4+ {[%emt 0:00:14]} Kh8 {[%emt 0:00:09]} 46. f5 {[%emt 0:00:57]} Ra3+ {[%emt 0:06:54]} 47. Kh4 {[%emt 0:00:59]} Rb3 {[%emt 0:01:08]} 48. f6 {[%emt 0:01:38]} Rxg4+ {[%emt 0:00:15]} 0-1

[Event "IIFL Wealth 4th Mumbai GM"]
[Site "Mumbai"]
[Date "2019.01.03"]
[Round "5"]
[White "Senthil Maran K"]
[Black "Siva Mahadevan"]
[Result "1-0"]
[ECO "A49"]
[WhiteElo "2197"]
[BlackElo "2333"]
[Annotator "NA"]
[PlyCount "87"]
[EventDate "2018.12.30"]
[EventType "swiss"]
[EventCountry "IND"]
[SourceTitle "playchess.com"]
[Source "ChessBase"]
[SourceQuality "1"]
[TimeControl "40/5400+30:1800+30"]

1. d4 {[%emt 0:04:43]} Nf6 {[%emt 0:00:00]} 2. Nf3 {[%emt 0:00:25]} g6 {[%emt 0:00:00]} 3. g3 {[%emt 0:00:08]} Bg7 {[%emt 0:00:12]} 4. Bg2 {[%emt 0:00:04]} O-O {[%emt 0:00:13]} 5. O-O {[%emt 0:00:08]} d6 {[%emt 0:01:31]} 6. b3 {[%emt 0:01:00]} e5 {[%emt 0:00:47]} 7. dxe5 {[%emt 0:02:03]} dxe5 {[%emt 0:00:12]} 8. Ba3 {[%emt 0:10:18]} Re8 {[%emt 0:02:23]} 9. Qxd8 {[%emt 0:02:22]} Rxd8 {[%emt 0:00:03]} 10. Nc3 {[%emt 0:00:15]} Nc6 {[%emt 0:01:45]} 11. Ng5 {[%emt 0:09:41]} Bf5 {[%emt 0:15:52]} 12. Bxc6 {[%emt 0:24:46]} bxc6 {[%emt 0:00:26]} 13. e4 {[%emt 0:00:11]} Bg4 {[%emt 0:09:19]} 14. h3 {[%emt 0:09:02]} Bd7 {[%emt 0:01:06]} 15. Kg2 {[%emt 0:00:57]} c5 {[%emt 0:00:27]} 16. Bxc5 {[%emt 0:07:58]} Bc6 {[%emt 0:01:06]} 17. Be7 {[%emt 0:06:06]} Rd2 {[%emt 0:02:50]} 18. Rac1 {[%emt 0:00:51]} Nxe4 {[%emt 0:02:28]} 19. Ngxe4 {[%emt 0:00:43]} f5 {[%emt 0:00:10]} 20. Bg5 {[%emt 0:05:29]} Rd4 {[%emt 0:06:02]} 21. f3 {[%emt 0:00:10]} fxe4 {[%emt 0:00:07]} 22. Nxe4 {[%emt 0:00:10]} Bxe4 {[%emt 0:03:16]} 23. fxe4 {[%emt 0:00:02]} Rxe4 {[%emt 0:00:02]} 24. Kf3 {[%emt 0:01:20]} Rd4 {[%emt 0:01:58]} 25. Be3 {[%emt 0:00:50]} e4+ {[%emt 0:06:54]} 26. Ke2 {[%emt 0:00:07]} Rd6 {[%emt 0:01:57]} 27. Rcd1 {[%emt 0:05:23]} a5 {[%emt 0:24:59]} 28. a4 {[%emt 0:01:11]} Rc6 {[%emt 0:00:32]} 29. c4 {[%emt 0:00:22]} Rb8 {[%emt 0:00:37]} 30. Rd5 {[%emt 0:02:47]} Rd6 {[%emt 0:03:21]} 31. Rxd6 {[%emt 0:01:39]} cxd6 {[%emt 0:00:09]} 32. Rb1 {[%emt 0:00:06]} Kf7 {[%emt 0:01:51]} 33. Bd2 {[%emt 0:00:11]} Ra8 {[%emt 0:02:14]} 34. Bf4 {[%emt 0:01:31]} Ke6 {[%emt 0:05:19]} 35. Rd1 {[%emt 0:01:41]} Ra6 {[%emt 0:05:16]} 36. Rd5 {[%emt 0:01:05]} h6 {[%emt 0:01:28]} 37. h4 {[%emt 0:00:33]} Bf8 {[%emt 0:00:51]} 38. Rb5 {[%emt 0:00:33]} Kd7 {[%emt 0:00:38]} 39. Bd2 {[%emt 0:00:40]} Kc6 {[%emt 0:00:17]} 40. Ke3 {[%emt 0:00:00]} Ra8 {[%emt 0:00:00]} 41. Kxe4 {[%emt 0:03:19]} Bg7 {[%emt 0:01:24]} 42. Rxa5 {[%emt 0:01:21]} Re8+ {[%emt 0:00:09]} 43. Kd3 {[%emt 0:00:08]} Rf8 {[%emt 0:00:15]} 44. Bf4 {[%emt 0:00:33] Kd5 Ke4+} 1-0

[Event "IIFL Wealth 4th Mumbai GM"]
[Site "Mumbai"]
[Date "2019.01.03"]
[Round "5"]
[White "Phadke Sohan"]
[Black "Dushyant Sharma"]
[Result "1-0"]
[ECO "A45"]
[WhiteElo "2191"]
[BlackElo "2271"]
[Annotator "ChessBase"]
[PlyCount "117"]
[EventDate "2018.12.30"]
[EventType "swiss"]
[EventCountry "IND"]
[SourceTitle "playchess.com"]
[Source "ChessBase"]
[SourceQuality "1"]
[TimeControl "40/5400+30:1800+30"]

1. d4 Nf6 2. Bg5 Ne4 3. Bf4 d5 4. e3 Bf5 5. f3 Nf6 6. c4 e6 7. Nc3 c6 8. g4 Bg6 9. Qb3 Qd7 10. h4 h6 11. Nh3 Be7 12. Be5 Kf8 13. Nf4 Bh7 14. g5 Ne8 15. gxh6 Bf6 16. hxg7+ Bxg7 17. cxd5 cxd5 18. Qa3+ Qe7 19. Qxe7+ Kxe7 20. Bxg7 Nxg7 21. Kd2 Nc6 22. h5 Nf5 23. Bd3 Nd6 24. b3 Bxd3 25. Kxd3 Nf5 26. Rag1 Rag8 27. a3 a6 28. b4 Kf6 29. Na4 b5 30. Nc5 a5 31. bxa5 Ra8 32. a6 b4 33. Rb1 bxa3 34. Rb6 Nfe7 35. Ra1 Kg5 36. Rxa3 e5 37. Ne2 Rxh5 38. f4+ exf4 39. Nxf4 Rh6 40. Rb7 Kg4 41. Ra1 Rh2 42. Rg1+ Kf3 43. Rf1+ Rf2 44. Rxf2+ Kxf2 45. Kd2 f6 46. Nfd3+ Kf3 47. Rb1 Kg2 48. Nf4+ Kf2 49. Nfd3+ Kg2 50. Ke2 Re8 51. Nf4+ Kh2 52. Kf2 Rg8 53. Ncd3 Nf5 54. Ne1 Nh4 55. Rb7 Rg4 56. a7 Nxa7 57. Rxa7 f5 58. Rh7 Kh1 59. Neg2 1-0

[Event "IIFL Wealth 4th Mumbai GM"]
[Site "Mumbai"]
[Date "2019.01.03"]
[Round "5"]
[White "Patil, Pratik"]
[Black "Mohota, Nisha"]
[Result "1/2-1/2"]
[ECO "C50"]
[WhiteElo "2178"]
[BlackElo "2264"]
[Annotator "ChessBase"]
[PlyCount "116"]
[EventDate "2018.12.30"]
[EventType "swiss"]
[EventCountry "IND"]
[SourceTitle "playchess.com"]
[Source "ChessBase"]
[SourceQuality "1"]
[TimeControl "40/5400+30:1800+30"]

1. e4 {[%emt 0:00:00]} e5 {[%emt 0:00:00]} 2. Nf3 {[%emt 0:00:00]} Nc6 {[%emt 0:00:00]} 3. Bc4 {[%emt 0:00:00]} Nf6 {[%emt 0:00:01]} 4. d3 {[%emt 0:00:25]} Bc5 {[%emt 0:00:11]} 5. c3 {[%emt 0:00:18]} d6 {[%emt 0:00:12]} 6. Bb3 {[%emt 0:00:07]} a5 {[%emt 0:00:22]} 7. a4 {[%emt 0:01:37]} O-O {[%emt 0:00:52]} 8. Nbd2 {[%emt 0:01:14]} Be6 {[%emt 0:00:58]} 9. Bc2 {[%emt 0:01:11]} Ng4 {[%emt 0:07:47]} 10. O-O {[%emt 0:06:50]} f5 {[%emt 0:12:44]} 11. exf5 {[%emt 0:07:31]} Bxf5 {[%emt 0:05:57]} 12. Ne4 {[%emt 0:02:20]} Ba7 {[%emt 0:06:36]} 13. h3 {[%emt 0:03:24]} Nh6 {[%emt 0:09:19]} 14. Ng3 {[%emt 0:11:01]} Bg6 {[%emt 0:04:03]} 15. Bxh6 {[%emt 0:14:15]} gxh6 {[%emt 0:00:04]} 16. d4 {[%emt 0:00:08]} exd4 {[%emt 0:15:04]} 17. Nxd4 {[%emt 0:06:30]} Nxd4 {[%emt 0:04:47]} 18. cxd4 {[%emt 0:00:10]} Bxc2 {[%emt 0:07:17]} 19. Qxc2 {[%emt 0:00:05]} d5 {[%emt 0:00:11]} 20. Qb3 {[%emt 0:05:20]} Rf6 {[%emt 0:07:16]} 21. Nh5 {[%emt 0:08:38]} Rb6 {[%emt 0:01:37]} 22. Qf3 {[%emt 0:10:00]} Rd6 {[%emt 0:02:32]} 23. Rae1 {[%emt 0:07:53]} Kh8 {[%emt 0:02:32]} 24. Re2 {[%emt 0:09:43]} Bxd4 {[%emt 0:05:26]} 25. Rfe1 {[%emt 0:01:24]} Qf8 {[%emt 0:00:49]} 26. Qd3 {[%emt 0:02:03]} c5 {[%emt 0:00:23]} 27. Qb5 {[%emt 0:00:31]} Rdd8 {[%emt 0:04:24]} 28. Qxb7 {[%emt 0:00:01]} Re8 {[%emt 0:00:11]} 29. Qxd5 {[%emt 0:01:19]} Bxf2+ {[%emt 0:00:53]} 30. Rxf2 {[%emt 0:00:20]} Rxe1+ {[%emt 0:00:02]} 31. Kh2 {[%emt 0:00:01]} Qb8+ {[%emt 0:00:50]} 32. g3 {[%emt 0:00:21]} Re5 {[%emt 0:02:08]} 33. Qf7 {[%emt 0:01:18]} Rxh5 {[%emt 0:00:23]} 34. Qxh5 {[%emt 0:00:14]} Qd6 {[%emt 0:00:11]} 35. Qf7 {[%emt 0:00:46]} Rg8 {[%emt 0:00:28]} 36. Qf3 {[%emt 0:00:20]} Qd4 {[%emt 0:00:54]} 37. Re2 {[%emt 0:00:36]} Rb8 {[%emt 0:00:25]} 38. Qf7 {[%emt 0:00:31]} Qg7 {[%emt 0:00:28]} 39. Re8+ {[%emt 0:00:28]} Rxe8 {[%emt 0:00:04]} 40. Qxe8+ {[%emt 0:00:00]} Qg8 {[%emt 0:00:00]} 41. Qe5+ {[%emt 0:28:30]} Qg7 {[%emt 0:00:10]} 42. Qb8+ {[%emt 0:00:12]} Qg8 {[%emt 0:00:02]} 43. Qd6 {[%emt 0:01:05]} Qe8 {[%emt 0:10:28]} 44. Qxc5 {[%emt 0:00:10]} Qe2+ {[%emt 0:00:13]} 45. Kg1 {[%emt 0:00:01]} Qe1+ {[%emt 0:05:40]} 46. Kg2 {[%emt 0:00:10]} Qe2+ {[%emt 0:01:01]} 47. Qf2 {[%emt 0:00:13]} Qe4+ {[%emt 0:00:06]} 48. Kh2 {[%emt 0:00:27]} Kg8 {[%emt 0:00:25]} 49. b3 {[%emt 0:03:04]} Qd3 {[%emt 0:01:35]} 50. Qb2 {[%emt 0:00:14]} Kf7 {[%emt 0:02:58]} 51. h4 {[%emt 0:00:59]} Ke6 {[%emt 0:01:16]} 52. Qc1 {[%emt 0:01:12]} Kd5 {[%emt 0:03:34]} 53. Qxh6 {[%emt 0:00:37]} Qe2+ {[%emt 0:00:55]} 54. Kh3 {[%emt 0:00:41]} Qf1+ {[%emt 0:00:21]} 55. Kg4 {[%emt 0:00:12]} Qe2+ {[%emt 0:00:11]} 56. Kh3 {[%emt 0:00:49]} Qf1+ {[%emt 0:00:04]} 57. Kg4 {[%emt 0:00:29]} Qe2+ {[%emt 0:00:13]} 58. Kh3 {[%emt 0:00:30]} Ke5 1/2-1/2

[Event "IIFL Wealth 4th Mumbai GM"]
[Site "Mumbai"]
[Date "2019.01.03"]
[Round "5"]
[White "Thrish Karthik"]
[Black "Varga, Klara"]
[Result "0-1"]
[ECO "A12"]
[WhiteElo "2168"]
[BlackElo "2242"]
[Annotator "NA"]
[PlyCount "66"]
[EventDate "2018.12.30"]
[EventType "swiss"]
[EventCountry "IND"]
[SourceTitle "playchess.com"]
[Source "ChessBase"]
[SourceQuality "1"]
[TimeControl "40/5400+30:1800+30"]

1. Nf3 {[%emt 0:00:00]} d5 {[%emt 0:00:31]} 2. c4 {[%emt 0:00:00]} c6 {[%emt 0:00:13]} 3. b3 {[%emt 0:00:42]} Nf6 {[%emt 0:00:06]} 4. Bb2 {[%emt 0:00:42]} Bg4 {[%emt 0:00:12]} 5. Ne5 {[%emt 0:09:32]} Bh5 {[%emt 0:00:37]} 6. g3 {[%emt 0:04:14]} Nbd7 {[%emt 0:00:10]} 7. Nxd7 {[%emt 0:10:55]} Qxd7 {[%emt 0:00:08]} 8. Bg2 {[%emt 0:00:08]} d4 {[%emt 0:00:16]} 9. d3 {[%emt 0:04:07]} e5 {[%emt 0:12:23]} 10. Nd2 {[%emt 0:02:37]} Bd6 {[%emt 0:00:53]} 11. Qc2 {[%emt 0:03:15]} c5 {[%emt 0:00:07]} 12. b4 {[%emt 0:10:00]} cxb4 {[%emt 0:00:48]} 13. c5 {[%emt 0:00:14]} Rc8 {[%emt 0:00:06]} 14. Nb3 {[%emt 0:00:35]} O-O {[%emt 0:00:57]} 15. Qc4 {[%emt 0:07:02]} a5 {[%emt 0:01:47]} 16. c6 {[%emt 0:02:27]} bxc6 {[%emt 0:00:26]} 17. Nxa5 {[%emt 0:01:00]} c5 {[%emt 0:00:33]} 18. Qc2 {[%emt 0:09:21]} Bc7 {[%emt 0:01:32]} 19. Nb3 {[%emt 0:08:06]} Bb6 {[%emt 0:00:42]} 20. Qc4 {[%emt 0:03:51]} Rfe8 {[%emt 0:00:45]} 21. Nd2 {[%emt 0:07:51]} Bg4 {[%emt 0:02:00]} 22. Qa6 {[%emt 0:07:57]} Nd5 {[%emt 0:00:50]} 23. Nc4 {[%emt 0:05:03]} Ba7 {[%emt 0:02:21]} 24. Qd6 {[%emt 0:00:54]} Nb6 {[%emt 0:00:57]} 25. Qxd7 {[%emt 0:00:32]} Bf5 26. Qe6 Bxe6 {[%emt 0:01:30]} 27. Nd6 {[%emt 0:00:57]} Bd7 {[%emt 0:00:47]} 28. Nxc8 {[%emt 0:01:08]} c4 {[%emt 0:00:09]} 29. dxc4 {[%emt 0:00:19]} Rxc8 {[%emt 0:00:07]} 30. Bc1 {[%emt 0:00:12]} Nxc4 {[%emt 0:00:54]} 31. Bd5 {[%emt 0:01:04]} Bf5 {[%emt 0:00:54]} 32. Bxc4 {[%emt 0:00:37]} e4 {[%emt 0:00:03]} 33. Bd2 {[%emt 0:00:27]} Rxc4 {[%emt 0:00:24]} 0-1

[Event "IIFL Wealth 4th Mumbai GM"]
[Site "Mumbai"]
[Date "2019.01.03"]
[Round "5"]
[White "Nikhil Magizhnan"]
[Black "Wagh Suyog"]
[Result "1/2-1/2"]
[ECO "B53"]
[WhiteElo "2148"]
[BlackElo "2240"]
[Annotator "NA"]
[PlyCount "81"]
[EventDate "2018.12.30"]
[EventType "swiss"]
[EventCountry "IND"]
[SourceTitle "playchess.com"]
[Source "ChessBase"]
[SourceQuality "1"]
[TimeControl "40/5400+30:1800+30"]

1. e4 c5 2. Nf3 d6 3. d4 cxd4 4. Qxd4 Nc6 5. Bb5 Bd7 6. Bxc6 Bxc6 7. Nc3 Nf6 8. Bg5 e6 9. O-O Be7 10. Rad1 Qa5 11. Qd2 Rd8 12. Rfe1 Qb6 13. Nd4 O-O 14. Nb3 Qc7 15. Qd3 Rfe8 16. Nd4 a6 17. a4 Bd7 18. Nb3 Bc6 19. Nd4 h6 20. Bh4 Rc8 21. Nb3 Red8 22. Qd4 b6 23. f3 Bb7 24. Kh1 Rb8 25. Bg3 Nh5 26. Bf2 Ba8 27. Qd3 Qc8 28. Qe2 Nf4 29. Qd2 Ng6 30. Bd4 Ne5 31. Qf2 Qc7 32. Nd2 Nc6 33. Be3 b5 34. axb5 axb5 35. Nb3 Rdc8 36. Ne2 b4 37. Qg3 Kh8 38. Nf4 Ne5 39. Re2 Nc4 40. Nh5 Bf8 41. Bc1 1/2-1/2

[Event "IIFL Wealth 4th Mumbai GM"]
[Site "Mumbai"]
[Date "2019.01.03"]
[Round "5"]
[White "Ghelani Dhairya"]
[Black "Arya Nirag Shah"]
[Result "0-1"]
[ECO "A50"]
[WhiteElo "2146"]
[BlackElo "1812"]
[Annotator "NA"]
[PlyCount "36"]
[EventDate "2018.12.30"]
[EventType "swiss"]
[EventCountry "IND"]
[SourceTitle "playchess.com"]
[Source "ChessBase"]
[SourceQuality "1"]
[TimeControl "40/5400+30:1800+30"]

1. d4 {[%emt 0:00:00]} Nf6 {[%emt 0:03:06]} 2. c4 {[%emt 0:00:00]} Nc6 {[%emt 0:00:58]} 3. Nc3 {[%emt 0:00:17]} e5 {[%emt 0:00:14]} 4. Be3 {[%emt 0:01:18]} Bb4 {[%emt 0:03:58]} 5. Qd2 {[%emt 0:01:43]} O-O {[%emt 0:02:41]} 6. g3 {[%emt 0:00:40]} d5 {[%emt 0:03:34]} 7. c5 {[%emt 0:02:35]} Ne4 {[%emt 0:01:00]} 8. Qd3 {[%emt 0:06:27]} Bf5 {[%emt 0:01:06]} 9. Bg2 {[%emt 0:10:18]} exd4 {[%emt 0:04:49]} 10. Bxd4 {[%emt 0:15:28]} Nxc3 {[%emt 0:01:38]} 11. Qxf5 {[%emt 0:07:12]} Nxd4 {[%emt 0:00:31]} 12. Qd3 {[%emt 0:00:59]} Ne4+ {[%emt 0:01:44]} 13. Kf1 {[%emt 0:05:21]} Nd2+ {[%emt 0:00:48]} 14. Ke1 {[%emt 0:00:33]} Qf6 {[%emt 0:02:08]} 15. Kd1 {[%emt 0:05:46]} Nc4 {[%emt 0:01:44]} 16. Kc1 {[%emt 0:03:41]} Nxe2+ {[%emt 0:01:34]} 17. Qxe2 {[%emt 0:03:31]} Bd2+ {[%emt 0:01:30]} 18. Kd1 {[%emt 0:01:16]} Qxb2 0-1

[Event "IIFL Wealth 4th Mumbai GM"]
[Site "Mumbai"]
[Date "2019.01.03"]
[Round "5"]
[White "Rakshitta Ravi"]
[Black "Rajesh, V A V"]
[Result "0-1"]
[ECO "A05"]
[WhiteElo "2141"]
[BlackElo "2402"]
[Annotator "NA"]
[PlyCount "99"]
[EventDate "2018.12.30"]
[EventType "swiss"]
[EventCountry "IND"]
[SourceTitle "playchess.com"]
[Source "ChessBase"]
[SourceQuality "1"]
[TimeControl "40/5400+30:1800+30"]

1. Nf3 {[%emt 0:00:33]} Nf6 {[%emt 0:00:00]} 2. g3 {[%emt 0:00:08]} g6 {[%emt 0:00:00]} 3. b3 {[%emt 0:00:07]} Bg7 {[%emt 0:00:00]} 4. Bb2 {[%emt 0:00:08]} O-O {[%emt 0:00:02]} 5. Bg2 {[%emt 0:00:09]} d6 {[%emt 0:01:02]} 6. d4 {[%emt 0:00:09]} c5 {[%emt 0:00:07]} 7. c4 {[%emt 0:00:27]} Nc6 {[%emt 0:01:03]} 8. O-O {[%emt 0:00:59]} Bg4 {[%emt 0:00:40]} 9. Nbd2 {[%emt 0:02:42]} Qc8 {[%emt 0:01:07]} 10. d5 {[%emt 0:03:02]} Nb4 {[%emt 0:02:15]} 11. a3 {[%emt 0:02:35]} Na6 {[%emt 0:00:05]} 12. Re1 {[%emt 0:00:33]} Rb8 {[%emt 0:01:23]} 13. e4 {[%emt 0:09:28]} b5 {[%emt 0:02:54]} 14. e5 {[%emt 0:15:13]} Nd7 {[%emt 0:02:02]} 15. cxb5 {[%emt 0:06:47]} Rxb5 {[%emt 0:01:10]} 16. Qc2 {[%emt 0:01:20]} Bxf3 {[%emt 0:07:59]} 17. Nxf3 {[%emt 0:00:11]} Nc7 {[%emt 0:00:19]} 18. exd6 {[%emt 0:08:21]} exd6 {[%emt 0:00:06]} 19. Bxg7 {[%emt 0:00:34]} Kxg7 {[%emt 0:00:05]} 20. Nd2 {[%emt 0:00:59]} Qd8 {[%emt 0:03:27]} 21. Ne4 {[%emt 0:07:01]} Rb6 {[%emt 0:00:52]} 22. Qb2+ {[%emt 0:01:40]} Kg8 {[%emt 0:00:21]} 23. f4 {[%emt 0:11:15]} Nxd5 {[%emt 0:12:10]} 24. Rad1 {[%emt 0:13:20]} N5f6 {[%emt 0:06:44]} 25. Rxd6 {[%emt 0:05:45]} Nxe4 {[%emt 0:00:24]} 26. Rxb6 Qxb6 {[%emt 0:00:10]} 27. Rxe4 {[%emt 0:00:37]} c4+ {[%emt 0:01:03]} 28. Qd4 {[%emt 0:02:55]} Nc5 {[%emt 0:03:42]} 29. Re5 {[%emt 0:02:18]} Nxb3 {[%emt 0:00:42]} 30. Qxb6 {[%emt 0:00:05]} axb6 {[%emt 0:00:03]} 31. Re3 {[%emt 0:01:10]} Rc8 {[%emt 0:01:19]} 32. Rc3 {[%emt 0:00:36]} Nd4 {[%emt 0:00:09]} 33. Bf1 {[%emt 0:00:11]} b5 {[%emt 0:01:24]} 34. Kf2 {[%emt 0:00:02]} Ra8 {[%emt 0:00:23]} 35. Bg2 {[%emt 0:01:09]} Ra5 {[%emt 0:01:43]} 36. Ke3 {[%emt 0:00:35]} Nb3 {[%emt 0:00:20]} 37. Bc6 {[%emt 0:00:13]} Kf8 {[%emt 0:00:10]} 38. f5 {[%emt 0:03:28]} gxf5 {[%emt 0:02:48]} 39. Kf4 {[%emt 0:00:32]} Nd4 {[%emt 0:00:08]} 40. Bf3 {[%emt 0:00:00]} Ne6+ {[%emt 0:00:00]} 41. Ke3 {[%emt 0:00:45]} Ke7 {[%emt 0:00:30]} 42. Bd1 {[%emt 0:02:55]} Kd6 {[%emt 0:01:19]} 43. a4 {[%emt 0:01:53]} bxa4 {[%emt 0:00:07]} 44. Rxc4 {[%emt 0:00:04]} a3 {[%emt 0:00:03]} 45. Rc1 {[%emt 0:00:05]} Ke5 {[%emt 0:00:10]} 46. Bb3 {[%emt 0:00:15]} a2 {[%emt 0:00:14]} 47. Ra1 {[%emt 0:00:36]} Ra3 {[%emt 0:00:04]} 48. Rxa2 {[%emt 0:00:21]} Rxb3+ {[%emt 0:00:05]} 49. Kf2 {[%emt 0:00:06]} h5 {[%emt 0:00:10]} 50. Kg2 {[%emt 0:00:18]} 0-1

[Event "IIFL Wealth 4th Mumbai GM"]
[Site "Mumbai"]
[Date "2019.01.03"]
[Round "5"]
[White "Saksham Rautela"]
[Black "Sammed Jaykumar, Shete"]
[Result "0-1"]
[ECO "B31"]
[WhiteElo "2123"]
[BlackElo "2378"]
[Annotator "NA"]
[PlyCount "66"]
[EventDate "2018.12.30"]
[EventType "swiss"]
[EventCountry "IND"]
[SourceTitle "playchess.com"]
[Source "ChessBase"]
[SourceQuality "1"]
[TimeControl "40/5400+30:1800+30"]

1. e4 {[%emt 0:00:00]} c5 {[%emt 0:00:00]} 2. Nf3 {[%emt 0:00:00]} Nc6 {[%emt 0:00:00]} 3. Bb5 {[%emt 0:00:00]} g6 {[%emt 0:00:00]} 4. Bxc6 {[%emt 0:00:00]} bxc6 {[%emt 0:00:00]} 5. O-O {[%emt 0:00:14]} Bg7 {[%emt 0:00:00]} 6. d3 {[%emt 0:01:43]} Nf6 {[%emt 0:02:43]} 7. Nc3 {[%emt 0:01:53]} O-O {[%emt 0:01:15]} 8. Be3 {[%emt 0:01:19]} d6 {[%emt 0:00:24]} 9. h3 {[%emt 0:00:34]} h6 {[%emt 0:02:23]} 10. Nh2 {[%emt 0:11:56]} e5 {[%emt 0:00:57]} 11. f4 {[%emt 0:05:27]} exf4 {[%emt 0:00:21]} 12. Bxf4 {[%emt 0:04:19]} Nh5 {[%emt 0:02:53]} 13. Be3 {[%emt 0:02:27]} f5 {[%emt 0:00:31]} 14. exf5 {[%emt 0:04:48]} Ng3 {[%emt 0:00:24]} 15. f6 {[%emt 0:05:07]} Bxf6 {[%emt 0:02:29]} 16. Rf3 {[%emt 0:02:50]} Nf5 {[%emt 0:00:11]} 17. Ng4 {[%emt 0:01:42]} Bg7 {[%emt 0:00:27]} 18. Bf2 {[%emt 0:02:36]} Rb8 {[%emt 0:01:19]} 19. Qc1 {[%emt 0:04:20]} Nd4 {[%emt 0:11:09]} 20. Rxf8+ {[%emt 0:07:08]} Qxf8 {[%emt 0:00:44]} 21. Qd2 {[%emt 0:02:04]} Rxb2 {[%emt 0:05:59]} 22. Ne3 {[%emt 0:05:18]} Qf4 {[%emt 0:05:25]} 23. Rd1 {[%emt 0:04:01]} Be5 {[%emt 0:03:38]} 24. Ne2 {[%emt 0:03:20]} Qg5 {[%emt 0:14:32]} 25. Nxd4 {[%emt 0:04:04]} cxd4 {[%emt 0:00:12]} 26. Nc4 {[%emt 0:01:02]} Qxd2 {[%emt 0:00:21]} 27. Nxd2 {[%emt 0:00:14]} Rxc2 {[%emt 0:02:10]} 28. Nf3 {[%emt 0:00:25]} c5 {[%emt 0:03:38]} 29. Nxe5 {[%emt 0:03:59]} dxe5 {[%emt 0:00:04]} 30. Bg3 {[%emt 0:01:35]} e4 {[%emt 0:05:31]} 31. dxe4 {[%emt 0:00:36]} Bb7 {[%emt 0:00:06]} 32. Bd6 {[%emt 0:04:17]} Bxe4 {[%emt 0:00:53]} 33. g4 {[%emt 0:00:11]} d3 {[%emt 0:00:38]} 0-1